bitfinex/quotes_BTCUSD_20241222
["timestamp","ask_amount","ask_price","bid_price","bid_amount"]
[1734829597691,0.00013997,97380.0,97379.0,1.1990132]
[1734829597905,0.00025677,97392.0,97388.0,0.48657503]
[1734829598112,0.00025677,97392.0,97388.0,0.66298343]
[1734829598515,0.00025677,97392.0,97391.0,0.35631103]
[1734829598764,0.00031103,97392.0,97391.0,0.45761943]
[1734829599584,0.00031103,97392.0,97391.0,1.00381942]
[1734829600374,0.00031103,97392.0,97391.0,1.01281942]
[1734829601152,0.00031103,97392.0,97391.0,1.02181942]
[1734829601363,0.00031103,97392.0,97391.0,1.15857389]
[1734829601878,0.00039673,97392.0,97391.0,1.15857389]
[1734829602141,0.00039673,97392.0,97391.0,1.14057389]
[1734829602347,0.00039673,97392.0,97391.0,1.15083314]
[1734829602546,0.00039673,97392.0,97391.0,1.15983314]
[1734829602927,8.57e-05,97400.0,97397.0,0.28121103]
[1734829603099,8.57e-05,97400.0,97397.0,0.38251943]
[1734829605894,8.57e-05,97400.0,97397.0,0.93732269]
[1734829606244,8.57e-05,97400.0,97397.0,0.92832269]
[1734829606681,0.0001,97429.0,97419.0,0.10821103]
[1734829606901,0.00062848,97420.0,97419.0,1.21117547]
[1734829607216,0.00054278,97420.0,97419.0,1.21014929]
[1734829608691,0.00054278,97420.0,97419.0,1.15047622]
[1734829609276,0.00054278,97420.0,97419.0,1.15947622]
[1734829609473,0.00054278,97420.0,97419.0,1.14347622]
[1734829609852,0.00054278,97420.0,97419.0,1.05247622]
[1734829610060,0.00054278,97420.0,97419.0,1.04347622]
[1734829610437,0.0001,97429.0,97425.0,0.00821103]
[1734829610661,0.00024844,97427.0,97426.0,0.27533462]
[1734829610837,0.00024844,97427.0,97426.0,0.4795924]
[1734829611852,0.00024844,97427.0,97426.0,1.02512426]
[1734829612253,0.08214844,97427.0,97426.0,1.02512426]
[1734829612458,0.08214844,97427.0,97426.0,1.03412426]
[1734829612655,0.08214844,97427.0,97426.0,1.02512426]
[1734829613144,0.08214844,97427.0,97426.0,1.03412426]
[1734829613447,0.08214844,97427.0,97426.0,1.02512426]
[1734829614298,0.08214844,97427.0,97426.0,0.87512426]
[1734829614499,0.08214844,97427.0,97426.0,0.66984026]
[1734829614853,0.08214844,97427.0,97426.0,0.1313084]
[1734829615061,0.08214844,97427.0,97426.0,0.1243084]
[1734829615871,0.08214844,97427.0,97426.0,0.1293084]
[1734829616698,0.08214844,97427.0,97426.0,0.1243084]
[1734829618154,0.08214844,97427.0,97426.0,0.1323084]
[1734829618328,0.08214844,97427.0,97426.0,0.1243084]
[1734829618764,0.08214844,97427.0,97426.0,0.1313084]
[1734829618888,0.08214844,97427.0,97426.0,0.1243084]
[1734829619117,0.08214844,97427.0,97426.0,0.1313084]
[1734829619512,0.08214844,97427.0,97426.0,0.1243084]
[1734829619718,0.08214844,97427.0,97426.0,0.1273084]
[1734829620939,0.08214844,97427.0,97426.0,0.1243084]
[1734829621334,0.08214844,97427.0,97426.0,0.1313084]
[1734829622054,0.08214844,97427.0,97421.0,0.023]
[1734829622533,0.08214844,97427.0,97426.0,0.001]
[1734829622534,0.22383741,97427.0,97426.0,0.001]
[1734829622730,0.287196,97420.0,97419.0,0.0001712]
[1734829622866,0.42888497,97420.0,97419.0,0.0001712]
[1734829623290,0.1318,97404.0,97385.0,0.205369]
[1734829623489,0.205334,97402.0,97386.0,0.1013084]
[1734829623741,0.0819,97401.0,97386.0,0.1013084]
[1734829623947,0.0819,97399.0,97376.0,0.01011966]
[1734829624287,0.0819,97394.0,97377.0,0.1013084]
[1734829624502,0.205353,97393.0,97377.0,0.3066934]
[1734829624702,0.205353,97393.0,97377.0,0.1013084]
[1734829624893,0.20663845,97392.0,97377.0,0.1013084]
[1734829625079,0.00128345,97392.0,97381.0,0.03]
[1734829625273,0.205355,97392.0,97381.0,0.03]
[1734829625433,0.20663849,97392.0,97381.0,0.03]
[1734829625643,0.205374,97384.0,97381.0,0.03054278]
[1734829625825,0.205374,97384.0,97381.0,0.00054278]
[1734829625826,0.14168897,97382.0,97381.0,0.00054278]
[1734829626055,0.3483486,97382.0,97381.0,0.00054278]
[1734829626254,0.34706497,97382.0,97381.0,0.00054278]
[1734829626659,0.34706497,97382.0,97381.0,0.00854278]
[1734829627821,0.34706497,97382.0,97381.0,0.00054278]
[1734829628790,0.34706497,97382.0,97381.0,0.00754278]
[1734829628983,0.34706497,97382.0,97381.0,0.00054278]
[1734829632019,0.14168897,97382.0,97381.0,0.00054278]
[1734829632349,0.14297267,97382.0,97381.0,0.00054278]
[1734829633059,0.0819,97383.0,97381.0,0.20592078]
[1734829633256,0.09178897,97390.0,97386.0,0.205366]
[1734829633584,0.09178897,97388.0,97383.0,0.023]
[1734829634005,0.09178897,97390.0,97385.0,0.023]
[1734829634210,0.09178897,97390.0,97383.0,0.023]
[1734829634417,0.09178897,97388.0,97383.0,0.023]
[1734829634621,0.09178897,97388.0,97381.0,0.00054278]
[1734829634889,0.09278897,97388.0,97381.0,0.00054278]
[1734829635071,0.09278897,97388.0,97383.0,0.023]
[1734829635270,0.09178897,97388.0,97383.0,0.023]
[1734829635618,0.001,97388.0,97385.0,0.023]
[1734829635819,0.09178897,97391.0,97385.0,0.023]
[1734829636790,0.0829,97393.0,97383.0,0.0001712]
[1734829637058,0.0829,97393.0,97387.0,0.205366]
[1734829637308,0.09178897,97391.0,97387.0,0.205366]
[1734829637549,0.09178897,97389.0,97385.0,0.023]
[1734829637785,0.09178897,97389.0,97386.0,0.205368]
[1734829638578,0.0829,97393.0,97387.0,0.003]
[1734829638579,0.09178897,97390.0,97387.0,0.003]
[1734829638814,0.09178897,97390.0,97386.0,0.205368]
[1734829639023,0.09178897,97390.0,97386.0,0.209368]
[1734829639224,0.09178897,97391.0,97386.0,0.209368]
[1734829639966,0.09178897,97390.0,97386.0,0.209368]
[1734829640168,0.0829,97393.0,97386.0,0.205368]
[1734829640367,0.09178897,97391.0,97386.0,0.205368]
[1734829640571,0.09178897,97391.0,97386.0,0.411736]
[1734829640797,0.0829,97393.0,97386.0,0.228368]
[1734829640798,0.09178897,97387.0,97386.0,0.228368]
[1734829641116,0.09178897,97387.0,97386.0,0.229368]
[1734829641291,0.17468897,97393.0,97386.0,0.229368]
[1734829641493,0.09178897,97392.0,97386.0,0.229368]
[1734829641704,0.09178897,97390.0,97386.0,0.229368]
[1734829641989,0.09178897,97388.0,97386.0,0.023]
[1734829642139,0.09178897,97388.0,97386.0,0.024]
[1734829642305,0.09178897,97388.0,97387.0,0.205366]
[1734829643122,0.09178897,97388.0,97386.0,0.024]
[1734829643335,0.09178897,97388.0,97383.0,0.0001712]
[1734829644229,0.29843848,97387.0,97386.0,0.001]
[1734829644429,0.29843848,97387.0,97383.0,0.0001712]
[1734829644430,0.20537,97385.0,97383.0,0.0001712]
[1734829644662,0.0012836,97384.0,97383.0,0.0001712]
[1734829644865,0.0012836,97384.0,97383.0,0.0011712]
[1734829645072,0.0012836,97384.0,97383.0,0.0001712]
[1734829645734,0.205372,97384.0,97383.0,0.0001712]
[1734829646172,0.29716097,97384.0,97383.0,0.0001712]
[1734829646919,0.29716097,97384.0,97383.0,0.0031712]
[1734829647650,0.09178897,97384.0,97383.0,0.0031712]
[1734829648857,0.09307266,97384.0,97383.0,0.0031712]
[1734829651265,0.17027266,97384.0,97383.0,0.0031712]
[1734829652015,0.21868897,97384.0,97383.0,0.0031712]
[1734829652265,0.48054214,97384.0,97383.0,0.0031712]
[1734829652792,0.48054214,97384.0,97383.0,0.0001712]
[1734829653088,0.48154214,97384.0,97383.0,0.0001712]
[1734829653279,0.48054214,97384.0,97383.0,0.0001712]
[1734829653572,0.21868897,97384.0,97383.0,0.0001712]
[1734829653805,0.0782,97384.0,97383.0,0.0001712]
[1734829654050,0.17127268,97384.0,97383.0,0.0001712]
[1734829654307,0.07948371,97384.0,97383.0,0.0001712]
[1734829654535,0.17027268,97384.0,97383.0,0.0001712]
[1734829654798,0.17127268,97384.0,97383.0,0.0001712]
[1734829655727,0.07948371,97384.0,97383.0,0.0001712]
[1734829655929,0.16898897,97384.0,97383.0,0.0001712]
[1734829656129,0.17027267,97384.0,97383.0,0.0001712]
[1734829656340,0.17127267,97384.0,97383.0,0.0001712]
[1734829656564,0.17027267,97384.0,97383.0,0.0001712]
[1734829656770,0.17127267,97384.0,97383.0,0.0001712]
[1734829657151,0.17027267,97384.0,97383.0,0.0001712]
[1734829657426,0.17127267,97384.0,97383.0,0.0001712]
[1734829658209,0.17027267,97384.0,97383.0,0.0001712]
[1734829659391,0.17127267,97384.0,97383.0,0.0001712]
[1734829659808,0.17027267,97384.0,97383.0,0.0001712]
[1734829660010,0.17127267,97384.0,97383.0,0.0001712]
[1734829660964,0.17027267,97384.0,97383.0,0.0001712]
[1734829661170,0.17127267,97384.0,97383.0,0.0001712]
[1734829662529,0.17027267,97384.0,97383.0,0.0001712]
[1734829662732,0.17127267,97384.0,97383.0,0.0001712]
[1734829662861,0.17027267,97384.0,97383.0,0.0001712]
[1734829663269,0.17127267,97384.0,97383.0,0.0001712]
[1734829663894,0.002,97384.0,97383.0,0.0001712]
[1734829664119,0.0772,97393.0,97383.0,0.0001712]
[1734829664336,0.00128363,97392.0,97383.0,0.0001712]
[1734829664701,0.001,97384.0,97383.0,0.0001712]
[1734829665125,0.09278897,97384.0,97383.0,0.0001712]
[1734829665332,0.001,97384.0,97383.0,0.0001712]
[1734829665685,0.00128363,97397.0,97383.0,0.0001712]
[1734829665896,0.09178897,97384.0,97383.0,0.0001712]
[1734829666094,0.220341,97399.0,97384.0,0.205372]
[1734829666095,0.00128361,97395.0,97384.0,0.205372]
[1734829666305,0.00128358,97394.0,97384.0,0.205372]
[1734829666503,0.00128358,97393.0,97384.0,0.205372]
[1734829666789,0.205345,97397.0,97383.0,0.0001712]
[1734829667075,0.0012836,97396.0,97384.0,0.205372]
[1734829667668,0.001,97393.0,97384.0,0.205372]
[1734829667874,0.09178897,97390.0,97383.0,0.0001712]
[1734829668069,0.001,97393.0,97392.0,0.205355]
[1734829669148,0.09178897,97395.0,97392.0,0.41071]
[1734829669556,0.09178897,97395.0,97392.0,0.205355]
[1734829669989,0.09178897,97395.0,97392.0,0.41471]
[1734829670191,0.09178897,97395.0,97392.0,0.41071]
[1734829670397,0.09178897,97395.0,97392.0,0.41371]
[1734829670605,0.09178897,97395.0,97392.0,0.41071]
[1734829671073,0.09178897,97395.0,97392.0,0.41271]
[1734829671492,0.09178897,97395.0,97392.0,0.207355]
[1734829672054,0.09178897,97398.0,97392.0,0.207355]
[1734829672258,0.015,97399.0,97397.0,0.205343]
[1734829672631,0.10678897,97399.0,97397.0,0.205343]
[1734829673709,0.015,97399.0,97397.0,0.206343]
[1734829673845,0.10678897,97399.0,97397.0,0.205343]
[1734829674254,0.10678897,97399.0,97397.0,0.207343]
[1734829674587,0.015,97399.0,97397.0,0.207343]
[1734829675230,0.015,97399.0,97397.0,0.21772813]
[1734829675549,0.015,97399.0,97397.0,0.21572813]
[1734829675777,0.015,97399.0,97397.0,0.22072813]
[1734829676017,0.015,97399.0,97398.0,0.1013084]
[1734829676186,0.015,97399.0,97398.0,0.1837084]
[1734829676374,0.015,97399.0,97398.0,0.2067084]
[1734829677446,0.015,97399.0,97398.0,0.2097084]
[1734829679345,0.015,97399.0,97398.0,0.3597084]
[1734829679551,0.015,97399.0,97398.0,0.4092084]
[1734829679749,0.015,97399.0,97398.0,0.42824791]
[1734829679949,0.015,97399.0,97398.0,0.97377977]
[1734829680827,0.015,97399.0,97398.0,1.09401513]
[1734829681816,0.015,97399.0,97398.0,1.09101513]
[1734829682023,0.015,97399.0,97398.0,1.10001513]
[1734829682221,0.015,97399.0,97398.0,1.42853825]
[1734829682525,0.015,97399.0,97398.0,1.61951886]
[1734829682734,8.57e-05,97419.0,97418.0,0.75083186]
[1734829682878,8.57e-05,97419.0,97418.0,1.15704026]
[1734829683297,8.57e-05,97419.0,97418.0,1.17607977]
[1734829684009,8.57e-05,97419.0,97418.0,1.27607977]
[1734829685110,8.57e-05,97419.0,97418.0,1.15704026]
[1734829685398,8.57e-05,97419.0,97418.0,1.17621587]
[1734829685691,8.57e-05,97419.0,97418.0,1.16721587]
[1734829685885,8.57e-05,97419.0,97418.0,1.17621587]
[1734829686299,8.57e-05,97419.0,97418.0,1.04431587]
[1734829686678,8.57e-05,97419.0,97418.0,1.03531587]
[1734829686874,8.57e-05,97419.0,97418.0,0.34878401]
[1734829688194,8.57e-05,97419.0,97418.0,0.33978401]
[1734829688568,8.57e-05,97419.0,97418.0,0.34778401]
[1734829692158,8.57e-05,97419.0,97418.0,0.31678401]
[1734829692597,8.57e-05,97419.0,97418.0,0.32478401]
[1734829692942,8.57e-05,97419.0,97418.0,0.008]
[1734829694236,8.57e-05,97419.0,97417.0,0.03]
[1734829694640,8.57e-05,97419.0,97418.0,0.003]
[1734829694811,8.57e-05,97419.0,97417.0,0.03]
[1734829695230,8.57e-05,97419.0,97418.0,0.002]
[1734829695486,8.57e-05,97419.0,97417.0,0.03]
[1734829695625,0.09178897,97418.0,97417.0,0.03]
[1734829695824,0.29710697,97410.0,97396.0,0.205346]
[1734829696027,0.09178897,97402.0,97391.0,0.205355]
[1734829696249,0.09178897,97399.0,97387.0,0.205365]
[1734829696464,0.09178897,97399.0,97392.0,0.205353]
[1734829697119,0.16778897,97399.0,97392.0,0.205353]
[1734829697327,0.16778897,97399.0,97387.0,0.205365]
[1734829698350,0.16778897,97399.0,97398.0,0.0061714]
[1734829699790,0.37312897,97399.0,97398.0,0.0061714]
[1734829701822,0.37312897,97399.0,97398.0,0.0001714]
[1734829702227,0.37312897,97399.0,97398.0,0.0021714]
[1734829703053,0.16778897,97399.0,97398.0,0.0021714]
[1734829703261,0.09178897,97405.0,97398.0,0.0021714]
[1734829703465,0.09178897,97405.0,97400.0,0.205336]
[1734829703662,0.09178897,97401.0,97398.0,0.0021714]
[1734829703895,0.00128336,97413.0,97398.0,0.0021714]
[1734829704115,0.09178897,97405.0,97404.0,0.20533]
[1734829704314,0.09178897,97405.0,97399.0,0.20534]
[1734829704489,0.09178897,97405.0,97404.0,0.20533]
[1734829705168,0.09178897,97405.0,97398.0,0.0001714]
[1734829705169,0.09178897,97405.0,97400.0,0.205338]
[1734829705317,0.09178897,97405.0,97404.0,0.005]
[1734829705703,0.09178897,97410.0,97405.0,0.205328]
[1734829705962,0.09178897,97409.0,97405.0,0.205328]
[1734829706142,0.09178897,97417.0,97406.0,0.1013084]
[1734829706340,0.09178897,97415.0,97412.0,0.205312]
[1734829706507,8.57e-05,97419.0,97418.0,0.2053]
[1734829706682,8.57e-05,97419.0,97418.0,0.3066084]
[1734829707939,8.57e-05,97419.0,97418.0,0.3076084]
[1734829708185,8.57e-05,97419.0,97418.0,0.3066084]
[1734829708488,8.57e-05,97419.0,97418.0,0.3106084]
[1734829708689,8.57e-05,97419.0,97418.0,0.3066084]
[1734829709888,8.57e-05,97419.0,97418.0,0.3106084]
[1734829710300,8.57e-05,97419.0,97418.0,0.3066084]
[1734829710467,8.57e-05,97419.0,97418.0,0.3116084]
[1734829710967,8.57e-05,97419.0,97418.0,0.005]
[1734829711167,8.57e-05,97419.0,97415.0,0.205305]
[1734829711581,8.57e-05,97419.0,97418.0,0.005]
[1734829711803,8.57e-05,97419.0,97415.0,0.205305]
[1734829712013,8.57e-05,97419.0,97415.0,0.410611]
[1734829713183,8.57e-05,97419.0,97418.0,0.004]
[1734829713409,8.57e-05,97419.0,97409.0,0.54553186]
[1734829713754,8.57e-05,97419.0,97415.0,0.005]
[1734829713987,8.57e-05,97419.0,97410.0,0.205317]
[1734829714189,8.57e-05,97419.0,97418.0,0.004]
[1734829714390,8.57e-05,97419.0,97410.0,0.205317]
[1734829714779,8.57e-05,97419.0,97415.0,0.205306]
[1734829716481,8.57e-05,97419.0,97418.0,0.004]
[1734829716685,8.57e-05,97419.0,97415.0,0.205306]
[1734829716892,8.57e-05,97419.0,97415.0,0.410612]
[1734829717308,8.57e-05,97419.0,97417.0,0.205302]
[1734829717515,8.57e-05,97419.0,97418.0,0.1013084]
[1734829718744,8.57e-05,97419.0,97416.0,0.01024198]
[1734829718972,8.57e-05,97419.0,97416.0,0.205305]
[1734829719843,8.57e-05,97419.0,97418.0,0.003]
[1734829720044,8.57e-05,97419.0,97416.0,0.205305]
[1734829720459,8.57e-05,97419.0,97416.0,0.210305]
[1734829720619,8.57e-05,97419.0,97416.0,0.205305]
[1734829720822,8.57e-05,97419.0,97418.0,0.005]
[1734829721233,8.57e-05,97419.0,97416.0,0.205305]
[1734829721437,8.57e-05,97419.0,97416.0,0.210305]
[1734829722731,8.57e-05,97419.0,97416.0,0.205305]
[1734829723155,8.57e-05,97419.0,97418.0,0.005]
[1734829723377,8.57e-05,97419.0,97416.0,0.205305]
[1734829723755,8.57e-05,97419.0,97416.0,0.210305]
[1734829723966,8.57e-05,97419.0,97416.0,0.205305]
[1734829724316,8.57e-05,97419.0,97418.0,0.005]
[1734829724746,8.57e-05,97419.0,97418.0,0.1013084]
[1734829725696,8.57e-05,97419.0,97418.0,0.1243084]
[1734829725925,8.57e-05,97419.0,97418.0,0.12533479]
[1734829726579,8.57e-05,97419.0,97418.0,0.14739975]
[1734829726839,8.57e-05,97419.0,97418.0,0.14439975]
[1734829727343,8.57e-05,97419.0,97418.0,0.15139975]
[1734829727546,8.57e-05,97419.0,97418.0,0.12737336]
[1734829728019,8.57e-05,97419.0,97418.0,0.12037336]
[1734829729255,8.57e-05,97419.0,97418.0,0.12837336]
[1734829729430,8.57e-05,97419.0,97418.0,0.12037336]
[1734829729787,8.57e-05,97419.0,97418.0,0.12637336]
[1734829731520,8.57e-05,97419.0,97418.0,0.1073084]
[1734829731721,8.57e-05,97419.0,97418.0,0.006]
[1734829732342,8.57e-05,97419.0,97416.0,0.41061]
[1734829732542,8.57e-05,97419.0,97418.0,0.005]
[1734829732765,8.57e-05,97419.0,97416.0,0.41061]
[1734829733180,8.57e-05,97419.0,97418.0,0.006]
[1734829733386,8.57e-05,97419.0,97416.0,0.41061]
[1734829734317,8.57e-05,97419.0,97416.0,0.41461]
[1734829735320,8.57e-05,97419.0,97417.0,0.01910363]
[1734829735518,8.57e-05,97419.0,97418.0,0.2053]
[1734829735934,8.57e-05,97419.0,97418.0,0.22440363]
[1734829736850,8.57e-05,97419.0,97418.0,0.22740363]
[1734829737059,8.57e-05,97419.0,97418.0,0.22440363]
[1734829737465,8.57e-05,97419.0,97418.0,0.22740363]
[1734829740284,8.57e-05,97419.0,97418.0,0.22440363]
[1734829740464,8.57e-05,97419.0,97418.0,0.22840363]
[1734829740710,8.57e-05,97419.0,97418.0,0.35271203]
[1734829741138,8.57e-05,97419.0,97418.0,0.32971203]
[1734829741334,8.57e-05,97419.0,97418.0,0.02310363]
[1734829741748,0.09315778,97419.0,97418.0,0.01910363]
[1734829741961,0.09315778,97419.0,97413.0,0.54553186]
[1734829742160,0.09178897,97414.0,97413.0,0.54553186]
[1734829743178,0.09178897,97414.0,97413.0,0.55053186]
[1734829743586,0.09178897,97414.0,97413.0,0.54553186]
[1734829743812,0.09178897,97414.0,97413.0,0.54953186]
[1734829743950,0.17118897,97414.0,97413.0,0.004]
[1734829744163,0.17247236,97414.0,97413.0,0.004]
[1734829744902,0.17247236,97414.0,97413.0,0.002]
[1734829745065,0.17118897,97414.0,97403.0,0.410664]
[1734829745267,0.00128335,97413.0,97403.0,0.205332]
[1734829745518,0.09178897,97404.0,97403.0,0.205332]
[1734829746190,0.09178897,97404.0,97399.0,0.0001714]
[1734829746618,0.09178897,97404.0,97403.0,0.001]
[1734829746993,0.09178897,97404.0,97400.0,0.205338]
[1734829747206,0.09178897,97404.0,97403.0,0.002]
[1734829747560,0.09178897,97404.0,97400.0,0.205338]
[1734829747762,0.09178897,97404.0,97403.0,0.002]
[1734829748173,0.09178897,97404.0,97403.0,0.004]
[1734829748442,0.09178897,97405.0,97403.0,0.002]
[1734829748648,0.09178897,97405.0,97404.0,0.20533]
[1734829748857,0.09178897,97409.0,97403.0,0.002]
[1734829749073,0.09178897,97404.0,97403.0,0.002]
[1734829749274,0.09178897,97409.0,97403.0,0.002]
[1734829749480,0.09178897,97405.0,97404.0,0.20533]
[1734829749903,0.09178897,97405.0,97404.0,0.20933]
[1734829750327,0.09178897,97408.0,97404.0,0.20933]
[1734829750540,0.0794,97414.0,97404.0,0.20933]
[1734829750541,0.09178897,97405.0,97404.0,0.20933]
[1734829750946,0.09178897,97405.0,97404.0,0.21233]
[1734829751178,0.09178897,97405.0,97404.0,0.20833]
[1734829751347,0.09178897,97405.0,97404.0,0.41366]
[1734829751914,0.09178897,97405.0,97404.0,0.41766]
[1734829752207,0.09178897,97405.0,97404.0,0.41466]
[1734829752416,0.09178897,97405.0,97404.0,0.004]
[1734829752613,0.09178897,97405.0,97404.0,0.006]
[1734829753199,0.09178897,97405.0,97404.0,0.004]
[1734829753819,0.09178897,97405.0,97404.0,0.007]
[1734829758209,0.09178897,97406.0,97405.0,0.205328]
[1734829758413,0.09178897,97405.0,97404.0,0.007]
[1734829759263,0.09178897,97405.0,97404.0,0.004]
[1734829760256,0.09307237,97405.0,97404.0,0.007]
[1734829761951,0.09178897,97405.0,97404.0,0.007]
[1734829762358,0.0012834,97411.0,97404.0,0.007]
[1734829762581,0.09178897,97405.0,97404.0,0.007]
[1734829763293,0.09187467,97405.0,97399.0,0.0001714]
[1734829763456,0.09178897,97400.0,97399.0,0.0001714]
[1734829764433,8.57e-05,97405.0,97400.0,0.205338]
[1734829764640,0.09187467,97405.0,97400.0,0.205338]
[1734829765041,8.57e-05,97405.0,97400.0,0.410676]
[1734829766108,8.57e-05,97405.0,97400.0,0.414676]
[1734829766282,8.57e-05,97405.0,97402.0,0.023]
[1734829766591,8.57e-05,97405.0,97403.0,0.1013084]
[1734829766798,8.57e-05,97405.0,97404.0,0.92488841]
[1734829766988,8.57e-05,97405.0,97404.0,1.02517026]
[1734829768066,8.57e-05,97405.0,97404.0,1.10737026]
[1734829768236,8.57e-05,97405.0,97404.0,1.11237026]
[1734829768568,8.57e-05,97405.0,97404.0,1.11537026]
[1734829768982,8.57e-05,97405.0,97404.0,1.59044573]
[1734829769412,8.57e-05,97405.0,97404.0,1.58544573]
[1734829769793,8.57e-05,97405.0,97404.0,1.59044573]
[1734829770162,8.57e-05,97405.0,97404.0,1.4535336]
[1734829771033,8.57e-05,97405.0,97404.0,0.82580174]
[1734829771181,8.57e-05,97405.0,97404.0,0.42925371]
[1734829771368,8.57e-05,97405.0,97404.0,0.09961531]
[1734829772167,8.57e-05,97405.0,97404.0,0.09661531]
[1734829772438,8.57e-05,97405.0,97404.0,0.09161531]
[1734829772638,8.57e-05,97405.0,97404.0,0.09461531]
[1734829772789,8.57e-05,97405.0,97404.0,0.008]
[1734829773517,8.57e-05,97405.0,97404.0,0.003]
[1734829773718,8.57e-05,97405.0,97404.0,0.20533]
[1734829774127,8.57e-05,97405.0,97404.0,0.20933]
[1734829774642,8.57e-05,97405.0,97404.0,0.29723]
[1734829774840,8.57e-05,97405.0,97404.0,0.21633]
[1734829775593,8.57e-05,97405.0,97404.0,0.011]
[1734829776396,0.09315811,97405.0,97404.0,0.011]
[1734829776635,0.09187467,97405.0,97404.0,0.004]
[1734829776837,0.09178897,97401.0,97399.0,0.0001714]
[1734829777094,0.09178897,97400.0,97399.0,0.0001714]
[1734829778017,0.09187467,97405.0,97399.0,0.0001714]
[1734829778167,0.09178897,97403.0,97400.0,0.410676]
[1734829778595,0.09178897,97401.0,97400.0,0.410676]
[1734829779658,0.09178897,97401.0,97400.0,0.413676]
[1734829779861,0.09178897,97401.0,97400.0,0.410676]
[1734829780060,0.09178897,97401.0,97400.0,0.413676]
[1734829780265,8.57e-05,97405.0,97400.0,0.413676]
[1734829780266,0.09178897,97404.0,97400.0,0.413676]
[1734829780894,0.09178897,97404.0,97400.0,0.415676]
[1734829781096,8.57e-05,97405.0,97400.0,0.415676]
[1734829781097,0.09178897,97403.0,97400.0,0.415676]
[1734829781436,8.57e-05,97405.0,97402.0,0.410668]
[1734829781663,8.57e-05,97405.0,97402.0,0.5119764]
[1734829782531,8.57e-05,97405.0,97402.0,0.5149764]
[1734829782762,8.57e-05,97405.0,97402.0,0.3146424]
[1734829783350,8.57e-05,97405.0,97402.0,0.5199764]
[1734829786635,8.57e-05,97405.0,97404.0,0.20533]
[1734829786834,8.57e-05,97405.0,97404.0,0.3296384]
[1734829788227,8.57e-05,97405.0,97404.0,0.3316384]
[1734829788653,8.57e-05,97405.0,97404.0,0.3356384]
[1734829789050,8.57e-05,97405.0,97404.0,0.3316384]
[1734829789248,8.57e-05,97405.0,97404.0,0.3406384]
[1734829789480,8.57e-05,97405.0,97404.0,0.35101493]
[1734829789652,8.57e-05,97405.0,97404.0,0.34201493]
[1734829790062,8.57e-05,97405.0,97404.0,0.34001493]
[1734829790261,8.57e-05,97405.0,97404.0,0.34401493]
[1734829790465,8.57e-05,97405.0,97404.0,0.34801493]
[1734829790812,8.57e-05,97405.0,97404.0,0.34401493]
[1734829791115,8.57e-05,97405.0,97404.0,0.34601493]
[1734829791676,8.57e-05,97405.0,97404.0,0.34001493]
[1734829791877,8.57e-05,97405.0,97404.0,0.34601493]
[1734829792483,8.57e-05,97405.0,97404.0,1.12514679]
[1734829793089,8.57e-05,97405.0,97404.0,1.12314679]
[1734829793316,8.57e-05,97405.0,97404.0,1.11514679]
[1734829793517,8.57e-05,97405.0,97404.0,1.11714679]
[1734829793668,8.57e-05,97405.0,97404.0,1.12114679]
[1734829793876,8.57e-05,97405.0,97404.0,1.11914679]
[1734829794155,8.57e-05,97405.0,97404.0,1.45789171]
[1734829794355,8.57e-05,97405.0,97404.0,1.45989171]
[1734829794908,8.57e-05,97405.0,97404.0,1.45389171]
[1734829795106,8.57e-05,97405.0,97404.0,1.46289171]
[1734829795505,8.57e-05,97405.0,97404.0,1.45389171]
[1734829795711,8.57e-05,97405.0,97404.0,1.46289171]
[1734829796331,8.57e-05,97405.0,97404.0,1.46889171]
[1734829796703,8.57e-05,97405.0,97404.0,1.36029171]
[1734829797113,8.57e-05,97405.0,97404.0,1.36429171]
[1734829797501,8.57e-05,97405.0,97404.0,1.34790243]
[1734829797908,8.57e-05,97405.0,97404.0,1.34390243]
[1734829798084,8.57e-05,97405.0,97404.0,0.83037057]
[1734829798507,8.57e-05,97405.0,97404.0,0.82137057]
[1734829798717,8.57e-05,97405.0,97404.0,0.35301493]
[1734829799145,8.57e-05,97405.0,97404.0,0.34801493]
[1734829799550,8.57e-05,97405.0,97404.0,0.35201493]
[1734829801343,0.09187467,97405.0,97404.0,0.012]
[1734829801779,0.17237467,97405.0,97404.0,0.012]
[1734829802413,0.17237467,97405.0,97404.0,0.004]
[1734829802627,0.20533,97404.0,97402.0,0.09179017]
[1734829802829,0.0012834,97403.0,97402.0,0.09179017]
[1734829803073,0.205334,97402.0,97399.0,0.0001714]
[1734829803247,0.00128346,97401.0,97399.0,0.0001714]
[1734829803476,0.29712697,97400.0,97399.0,0.0001714]
[1734829803687,0.09178897,97400.0,97399.0,0.0001714]
[1734829804978,0.09178897,97400.0,97399.0,0.0041714]
[1734829806057,0.29712697,97400.0,97399.0,0.0061714]
[1734829807321,0.42662697,97400.0,97399.0,0.0061714]
[1734829807527,0.52662697,97400.0,97399.0,0.0061714]
[1734829811966,0.22128897,97400.0,97399.0,0.0061714]
[1734829812178,0.09178897,97400.0,97399.0,0.0061714]
[1734829812588,0.4802104,97400.0,97399.0,0.0061714]
[1734829812792,0.62913537,97400.0,97399.0,0.0061714]
[1734829813020,0.87913537,97400.0,97399.0,0.0061714]
[1734829813392,0.77913537,97400.0,97399.0,0.0061714]
[1734829813599,0.87913537,97400.0,97399.0,0.0001714]
[1734829814007,0.88213537,97400.0,97399.0,0.0001714]
[1734829814249,0.88113537,97400.0,97399.0,0.0001714]
[1734829814447,0.90207738,97400.0,97399.0,0.0001714]
[1734829814648,0.90307738,97400.0,97399.0,0.0001714]
[1734829815086,0.90307738,97400.0,97351.0,0.09179017]
[1734829815087,0.44178897,97399.0,97351.0,0.09179017]
[1734829815260,0.67249737,97399.0,97355.0,0.410863]
[1734829815505,0.67249737,97399.0,97360.0,0.205422]
[1734829816597,0.67449737,97399.0,97360.0,0.205422]
[1734829817481,0.81292284,97399.0,97360.0,0.205422]
[1734829818978,0.67549737,97399.0,97360.0,0.205422]
[1734829819136,0.67549737,97399.0,97360.0,0.410844]
[1734829819337,0.67549737,97399.0,97364.0,0.205412]
[1734829820806,0.67558307,97399.0,97364.0,0.205412]
[1734829822382,0.4837941,97399.0,97370.0,0.2054]
[1734829822577,0.3837941,97399.0,97380.0,0.205379]
[1734829822785,0.67558307,97399.0,97371.0,0.0486]
[1734829823161,0.09287467,97399.0,97393.0,0.205351]
[1734829823360,8.57e-05,97399.0,97397.0,0.253943]
[1734829823567,0.09187467,97399.0,97393.0,0.205351]
[1734829823785,0.09287467,97399.0,97393.0,0.410704]
[1734829823989,0.09187467,97399.0,97393.0,0.410704]
[1734829824335,0.09487467,97399.0,97393.0,0.410704]
[1734829824530,0.09387467,97399.0,97393.0,0.410704]
[1734829824923,0.09187467,97399.0,97398.0,0.0011714]
[1734829826617,8.57e-05,97399.0,97398.0,0.0011714]
[1734829826865,0.09187467,97399.0,97398.0,0.0011714]
[1734829827041,0.09187467,97399.0,97398.0,0.0031714]